BODY,BODY NAME,DATE,TRANSACTION NUMBER, AMOUNT ,SUPPLIER NAME,SUPPLIER ID,EXPENSE AREA,EXPENSE TYPE,EXPENSE CODE,
http://statistics.data.gov.uk/id/local-authority/12UE,Huntingdonshire District Council,03/10/2013,135661,3132.00,Elephant & Castle Freehouse & Motel,CR401969,Accommodation For Homeless,Bed & Breakfast Payment,818,
http://statistics.data.gov.uk/id/local-authority/12UE,Huntingdonshire District Council,10/10/2013,136135,3024.00,Elephant & Castle Freehouse & Motel,CR401969,Accommodation For Homeless,Bed & Breakfast Payment,818,
http://statistics.data.gov.uk/id/local-authority/12UE,Huntingdonshire District Council,17/10/2013,136417,2862.00,Elephant & Castle Freehouse & Motel,CR401969,Accommodation For Homeless,Bed & Breakfast Payment,818,
http://statistics.data.gov.uk/id/local-authority/12UE,Huntingdonshire District Council,24/10/2013,136921,2862.00,Elephant & Castle Freehouse & Motel,CR401969,Accommodation For Homeless,Bed & Breakfast Payment,818,
http://statistics.data.gov.uk/id/local-authority/12UE,Huntingdonshire District Council,31/10/2013,137302,2700.00,Elephant & Castle Freehouse & Motel,CR401969,Accommodation For Homeless,Bed & Breakfast Payment,818,
http://statistics.data.gov.uk/id/local-authority/12UE,Huntingdonshire District Council,10/10/2013,134757,850.00,The George Hotel,CR135380,Accommodation For Homeless,Bed & Breakfast Payment,818,
http://statistics.data.gov.uk/id/local-authority/12UE,Huntingdonshire District Council,24/10/2013,136422,2335.46,King Street Housing Society,CR409301,Accommodation For Homeless,Management Charge,733,
http://statistics.data.gov.uk/id/local-authority/12UE,Huntingdonshire District Council,24/10/2013,136594,14.41,Orange Airtime,CR455799,Animal Welfare,Mobile Telephones & Radios,241,
http://statistics.data.gov.uk/id/local-authority/12UE,Huntingdonshire District Council,24/10/2013,136595,7.20,Orange Airtime,CR455799,Animal Welfare,Mobile Telephones & Radios,241,
http://statistics.data.gov.uk/id/local-authority/12UE,Huntingdonshire District Council,03/10/2013,134377,606.00,G Ferrara Ltd,CR478949,Bus Shelters,Sitework,359,
http://statistics.data.gov.uk/id/local-authority/12UE,Huntingdonshire District Council,31/10/2013,136343,1064.70,Beebys Limited,CR415822,Bus Stations,Building Cleaning Internal,440,
http://statistics.data.gov.uk/id/local-authority/12UE,Huntingdonshire District Council,03/10/2013,134383,1014.00,Beebys Limited,CR415822,Bus Stations,Building Cleaning Internal,440,
http://statistics.data.gov.uk/id/local-authority/12UE,Huntingdonshire District Council,31/10/2013,136343,25.68,Beebys Limited,CR415822,Bus Stations,Window Cleaning,442,
http://statistics.data.gov.uk/id/local-authority/12UE,Huntingdonshire District Council,03/10/2013,134383,24.00,Beebys Limited,CR415822,Bus Stations,Window Cleaning,442,
http://statistics.data.gov.uk/id/local-authority/12UE,Huntingdonshire District Council,31/10/2013,137034,678.00,Cambridgeshire Chamber Of Commerce,CR411674,Business & Enterprise Support,Corporate Subscriptions,754,
http://statistics.data.gov.uk/id/local-authority/12UE,Huntingdonshire District Council,24/10/2013,136594,9.60,Orange Airtime,CR455799,Business Analysis,Mobile Telephones & Radios,241,
http://statistics.data.gov.uk/id/local-authority/12UE,Huntingdonshire District Council,24/10/2013,136595,4.80,Orange Airtime,CR455799,Business Analysis,Mobile Telephones & Radios,241,
http://statistics.data.gov.uk/id/local-authority/12UE,Huntingdonshire District Council,10/10/2013,135858,798.70,E-On Energy,CR416430,C C T V,Electricity,420,
http://statistics.data.gov.uk/id/local-authority/12UE,Huntingdonshire District Council,24/10/2013,136594,18.96,Orange Airtime,CR455799,C C T V,Mobile Telephones & Radios,241,
http://statistics.data.gov.uk/id/local-authority/12UE,Huntingdonshire District Council,24/10/2013,136595,9.60,Orange Airtime,CR455799,C C T V,Mobile Telephones & Radios,241,
http://statistics.data.gov.uk/id/local-authority/12UE,Huntingdonshire District Council,10/10/2013,136152,109250.77,Bt Redcare,CR410623,C C T V,Transmission Lines Rental,767,
http://statistics.data.gov.uk/id/local-authority/12UE,Huntingdonshire District Council,24/10/2013,136594,4.80,Orange Airtime,CR455799,Call Centre,Mobile Telephones & Radios,241,
http://statistics.data.gov.uk/id/local-authority/12UE,Huntingdonshire District Council,24/10/2013,136595,2.40,Orange Airtime,CR455799,Call Centre,Mobile Telephones & Radios,241,
http://statistics.data.gov.uk/id/local-authority/12UE,Huntingdonshire District Council,24/10/2013,137018,2820.97,Dell Computer Corporation,CR408320,Call Centre,Other I T Hardware,203,
http://statistics.data.gov.uk/id/local-authority/12UE,Huntingdonshire District Council,10/10/2013,134618,1678.74,J Breheny Contractors Ltd,CR000314,Car Park Assets,Sitework,359,
http://statistics.data.gov.uk/id/local-authority/12UE,Huntingdonshire District Council,10/10/2013,134617,797.15,J Breheny Contractors Ltd,CR000314,Car Park Assets,Sitework,359,
http://statistics.data.gov.uk/id/local-authority/12UE,Huntingdonshire District Council,10/10/2013,134831,504.00,K & M Lighting Services Ltd,CR455166,Car Park Assets,Sitework,359,
http://statistics.data.gov.uk/id/local-authority/12UE,Huntingdonshire District Council,31/10/2013,135900,3425.92,Cale Briparc Ltd,CR401137,Car Park Management,Car Park Machines,522,
http://statistics.data.gov.uk/id/local-authority/12UE,Huntingdonshire District Council,31/10/2013,136394,4757.27,G4s Cashservices Uk Ltd,CR407133,Car Park Management,Cash Collection,702,
http://statistics.data.gov.uk/id/local-authority/12UE,Huntingdonshire District Council,03/10/2013,135435,513.13,Swalec,CR407130,Car Park Management,Electricity,420,
http://statistics.data.gov.uk/id/local-authority/12UE,Huntingdonshire District Council,24/10/2013,136594,18.96,Orange Airtime,CR455799,Car Park Management,Mobile Telephones & Radios,241,
http://statistics.data.gov.uk/id/local-authority/12UE,Huntingdonshire District Council,24/10/2013,136595,9.60,Orange Airtime,CR455799,Car Park Management,Mobile Telephones & Radios,241,
http://statistics.data.gov.uk/id/local-authority/12UE,Huntingdonshire District Council,24/10/2013,135515,1154.30,Marshall Motor Group,CR009641,Car Park Management,Vehicle Parts & Fittings,625,
http://statistics.data.gov.uk/id/local-authority/12UE,Huntingdonshire District Council,10/10/2013,135839,570119.18,Graham,CR480029,Car Parks Capital,Building Construction,300,
http://statistics.data.gov.uk/id/local-authority/12UE,Huntingdonshire District Council,24/10/2013,136403,576.00,Jba Construction & Management Services,CR416716,Car Parks Capital,Consultants,711,
http://statistics.data.gov.uk/id/local-authority/12UE,Huntingdonshire District Council,24/10/2013,131727,1571.60,Anglian Water Services Ltd,CR415842,Car Parks Capital,Sitework,359,
http://statistics.data.gov.uk/id/local-authority/12UE,Huntingdonshire District Council,24/10/2013,137027,-1571.60,Anglian Water Services Ltd,CR415842,Car Parks Capital,Sitework,359,
http://statistics.data.gov.uk/id/local-authority/12UE,Huntingdonshire District Council,31/10/2013,136645,3066.60,Thomson Reuters,CR412314,Central Services M Us,Books & Publications,250,
http://statistics.data.gov.uk/id/local-authority/12UE,Huntingdonshire District Council,24/10/2013,135707,533.00,Thomson Reuters,CR412314,Central Services M Us,Books & Publications,250,
http://statistics.data.gov.uk/id/local-authority/12UE,Huntingdonshire District Council,10/10/2013,135168,1208.74,Local Government Association,CR400598,Central Services M Us,Legal Fees,729,
http://statistics.data.gov.uk/id/local-authority/12UE,Huntingdonshire District Council,24/10/2013,136594,57.12,Orange Airtime,CR455799,Central Services M Us,Mobile Telephones & Radios,241,
http://statistics.data.gov.uk/id/local-authority/12UE,Huntingdonshire District Council,24/10/2013,136595,28.80,Orange Airtime,CR455799,Central Services M Us,Mobile Telephones & Radios,241,
http://statistics.data.gov.uk/id/local-authority/12UE,Huntingdonshire District Council,31/10/2013,136641,788.52,Oyezstraker Office Supplies,CR032169,Central Services M Us,Software,206,
http://statistics.data.gov.uk/id/local-authority/12UE,Huntingdonshire District Council,03/10/2013,135263,720.00,Aea Training,CR40222,Chief Executive & Comt,Training - Professional,130,
http://statistics.data.gov.uk/id/local-authority/12UE,Huntingdonshire District Council,31/10/2013,137359,5533.93,Computershare Vouchers Ltd,CR412205,Child Care Vouchers - Payroll,Deductions Paid To Third Party,26,
http://statistics.data.gov.uk/id/local-authority/12UE,Huntingdonshire District Council,24/10/2013,135262,4641.00,Richard Herrmann Assoc Ltd,CR403316,Community Iniatives Capital,Consultants,711,
http://statistics.data.gov.uk/id/local-authority/12UE,Huntingdonshire District Council,24/10/2013,136594,61.68,Orange Airtime,CR455799,Community Services M Us,Mobile Telephones & Radios,241,
http://statistics.data.gov.uk/id/local-authority/12UE,Huntingdonshire District Council,24/10/2013,136595,31.19,Orange Airtime,CR455799,Community Services M Us,Mobile Telephones & Radios,241,
http://statistics.data.gov.uk/id/local-authority/12UE,Huntingdonshire District Council,10/10/2013,134812,8004.00,Modern Mindset Ltd,CR482623,Corporate Committees,Software,206,
http://statistics.data.gov.uk/id/local-authority/12UE,Huntingdonshire District Council,24/10/2013,136594,105.60,Orange Airtime,CR455799,Corporate Office Mus,Mobile Telephones & Radios,241,
http://statistics.data.gov.uk/id/local-authority/12UE,Huntingdonshire District Council,24/10/2013,136595,52.80,Orange Airtime,CR455799,Corporate Office Mus,Mobile Telephones & Radios,241,
http://statistics.data.gov.uk/id/local-authority/12UE,Huntingdonshire District Council,31/10/2013,135898,1122.00,Cfl Estate Services,CR455208,Corporate Office Mus,Property Management,781,
http://statistics.data.gov.uk/id/local-authority/12UE,Huntingdonshire District Council,31/10/2013,135987,568.82,Phoenix Software Ltd,CR031918,Corporate Office Mus,Software,206,
http://statistics.data.gov.uk/id/local-authority/12UE,Huntingdonshire District Council,03/10/2013,135086,2003.97,Newlyn Plc,CR409114,Council Tax,Bailiffs,703,
http://statistics.data.gov.uk/id/local-authority/12UE,Huntingdonshire District Council,31/10/2013,135888,1518.23,Newlyn Plc,CR409114,Council Tax,Bailiffs,703,
http://statistics.data.gov.uk/id/local-authority/12UE,Huntingdonshire District Council,17/10/2013,135066,1205.93,Newlyn Plc,CR409114,Council Tax,Bailiffs,703,
http://statistics.data.gov.uk/id/local-authority/12UE,Huntingdonshire District Council,24/10/2013,135489,869.29,Newlyn Plc,CR409114,Council Tax,Bailiffs,703,
http://statistics.data.gov.uk/id/local-authority/12UE,Huntingdonshire District Council,10/10/2013,135062,809.15,Newlyn Plc,CR409114,Council Tax,Bailiffs,703,
http://statistics.data.gov.uk/id/local-authority/12UE,Huntingdonshire District Council,03/10/2013,134927,500.37,King Bros,CR411339,Countryside,Catering Materials,559,
http://statistics.data.gov.uk/id/local-authority/12UE,Huntingdonshire District Council,03/10/2013,134530,621.35,S S Motors (Fuels)  Ltd,CR400864,Countryside,Diesel,615,
http://statistics.data.gov.uk/id/local-authority/12UE,Huntingdonshire District Council,03/10/2013,135439,515.80,Swalec,CR407130,Countryside,Electricity,420,
http://statistics.data.gov.uk/id/local-authority/12UE,Huntingdonshire District Council,24/10/2013,136031,1652.63,Arthur Ibbett Ltd,CR000430,Countryside,Equipment Maintenance,511,
http://statistics.data.gov.uk/id/local-authority/12UE,Huntingdonshire District Council,17/10/2013,136447,1771.20,M & D Flooring Ltd,CR455531,Countryside,Gen Building Mtce - Planned,304,
http://statistics.data.gov.uk/id/local-authority/12UE,Huntingdonshire District Council,24/10/2013,136594,62.40,Orange Airtime,CR455799,Countryside,Mobile Telephones & Radios,241,
http://statistics.data.gov.uk/id/local-authority/12UE,Huntingdonshire District Council,24/10/2013,136595,33.60,Orange Airtime,CR455799,Countryside,Mobile Telephones & Radios,241,
http://statistics.data.gov.uk/id/local-authority/12UE,Huntingdonshire District Council,24/10/2013,135965,1000.00,Adam Groundworks,CR478140,Countryside,Subcontractors,777,
http://statistics.data.gov.uk/id/local-authority/12UE,Huntingdonshire District Council,31/10/2013,136395,372.06,G4s Cashservices Uk Ltd,CR407133,Customer Service Centres,Cash Collection,702,
http://statistics.data.gov.uk/id/local-authority/12UE,Huntingdonshire District Council,17/10/2013,136509,594.90,Zurich Municipal,CR477397,Customer Service Centres,Ins (Service Related),260,
http://statistics.data.gov.uk/id/local-authority/12UE,Huntingdonshire District Council,24/10/2013,136594,24.00,Orange Airtime,CR455799,Customer Service Centres,Mobile Telephones & Radios,241,
http://statistics.data.gov.uk/id/local-authority/12UE,Huntingdonshire District Council,24/10/2013,136595,12.00,Orange Airtime,CR455799,Customer Service Centres,Mobile Telephones & Radios,241,
http://statistics.data.gov.uk/id/local-authority/12UE,Huntingdonshire District Council,10/10/2013,135488,5880.00,Q-Matic Uk Ltd,CR417152,Customer Service Centres,Software,206,
http://statistics.data.gov.uk/id/local-authority/12UE,Huntingdonshire District Council,24/10/2013,135940,2332.01,Deloitte Llp,CR400573,Dc Application Processing,Consultants,711,
http://statistics.data.gov.uk/id/local-authority/12UE,Huntingdonshire District Council,10/10/2013,135195,540.00,Reading Agricultural Consultants,CR404991,Dc Application Processing,Consultants,711,
http://statistics.data.gov.uk/id/local-authority/12UE,Huntingdonshire District Council,10/10/2013,134702,6442.94,Canon Uk Ltd,CR409013,Document Centre,Equipment Maintenance,511,
http://statistics.data.gov.uk/id/local-authority/12UE,Huntingdonshire District Council,31/10/2013,136005,1035.17,Canon Uk Ltd,CR409013,Document Centre,Equipment Maintenance,511,
http://statistics.data.gov.uk/id/local-authority/12UE,Huntingdonshire District Council,10/10/2013,134769,2746.28,Konica Minolta,CR478866,Document Centre,Equipment Maintenance,511,
http://statistics.data.gov.uk/id/local-authority/12UE,Huntingdonshire District Council,31/10/2013,135881,2055.42,Konica Minolta,CR478866,Document Centre,Equipment Maintenance,511,
http://statistics.data.gov.uk/id/local-authority/12UE,Huntingdonshire District Council,24/10/2013,136594,4.80,Orange Airtime,CR455799,Document Centre,Mobile Telephones & Radios,241,
http://statistics.data.gov.uk/id/local-authority/12UE,Huntingdonshire District Council,24/10/2013,136595,2.40,Orange Airtime,CR455799,Document Centre,Mobile Telephones & Radios,241,
http://statistics.data.gov.uk/id/local-authority/12UE,Huntingdonshire District Council,24/10/2013,135465,537.84,Xerox Office Supplies,CR481184,Document Centre,Paper,562,
http://statistics.data.gov.uk/id/local-authority/12UE,Huntingdonshire District Council,10/10/2013,135472,599.40,Neopost,CR028326,Document Centre,Postage,231,
http://statistics.data.gov.uk/id/local-authority/12UE,Huntingdonshire District Council,31/10/2013,136002,1364.34,Royal Mail,CR027083,Document Centre,Postage,231,
http://statistics.data.gov.uk/id/local-authority/12UE,Huntingdonshire District Council,17/10/2013,135470,1224.10,Royal Mail,CR027083,Document Centre,Postage,231,
http://statistics.data.gov.uk/id/local-authority/12UE,Huntingdonshire District Council,03/10/2013,134708,1213.09,Royal Mail,CR027083,Document Centre,Postage,231,
http://statistics.data.gov.uk/id/local-authority/12UE,Huntingdonshire District Council,10/10/2013,134771,13.54,Royal Mail,CR027083,Document Centre,Postage,231,
http://statistics.data.gov.uk/id/local-authority/12UE,Huntingdonshire District Council,17/10/2013,135468,852.16,T N T Post London Ltd,CR479965,Document Centre,Postage,231,
http://statistics.data.gov.uk/id/local-authority/12UE,Huntingdonshire District Council,24/10/2013,135883,1474.34,T N T Post London Ltd,CR479965,Document Centre,Postage,231,
http://statistics.data.gov.uk/id/local-authority/12UE,Huntingdonshire District Council,31/10/2013,136001,952.63,T N T Post London Ltd,CR479965,Document Centre,Postage,231,
http://statistics.data.gov.uk/id/local-authority/12UE,Huntingdonshire District Council,10/10/2013,135056,1243.75,T N T Post London Ltd,CR479965,Document Centre,Postage,231,
http://statistics.data.gov.uk/id/local-authority/12UE,Huntingdonshire District Council,03/10/2013,134706,835.34,T N T Post London Ltd,CR479965,Document Centre,Postage,231,
http://statistics.data.gov.uk/id/local-authority/12UE,Huntingdonshire District Council,17/10/2013,135509,4339.94,Staffline Group,CR416827,Domestic Refuse,Hired Staff,100,
http://statistics.data.gov.uk/id/local-authority/12UE,Huntingdonshire District Council,24/10/2013,135999,4260.31,Staffline Group,CR416827,Domestic Refuse,Hired Staff,100,
http://statistics.data.gov.uk/id/local-authority/12UE,Huntingdonshire District Council,10/10/2013,135555,3867.84,Staffline Group,CR416827,Domestic Refuse,Hired Staff,100,
http://statistics.data.gov.uk/id/local-authority/12UE,Huntingdonshire District Council,31/10/2013,136434,3489.59,Staffline Group,CR416827,Domestic Refuse,Hired Staff,100,
http://statistics.data.gov.uk/id/local-authority/12UE,Huntingdonshire District Council,03/10/2013,134806,3273.44,Staffline Group,CR416827,Domestic Refuse,Hired Staff,100,
http://statistics.data.gov.uk/id/local-authority/12UE,Huntingdonshire District Council,10/10/2013,135552,3071.52,Staffline Group,CR416827,Domestic Refuse,Hired Staff,100,
http://statistics.data.gov.uk/id/local-authority/12UE,Huntingdonshire District Council,17/10/2013,135505,3037.39,Staffline Group,CR416827,Domestic Refuse,Hired Staff,100,
http://statistics.data.gov.uk/id/local-authority/12UE,Huntingdonshire District Council,24/10/2013,136012,2406.02,Staffline Group,CR416827,Domestic Refuse,Hired Staff,100,
http://statistics.data.gov.uk/id/local-authority/12UE,Huntingdonshire District Council,31/10/2013,136435,2315.02,Staffline Group,CR416827,Domestic Refuse,Hired Staff,100,
http://statistics.data.gov.uk/id/local-authority/12UE,Huntingdonshire District Council,03/10/2013,134808,1979.42,Staffline Group,CR416827,Domestic Refuse,Hired Staff,100,
http://statistics.data.gov.uk/id/local-authority/12UE,Huntingdonshire District Council,10/10/2013,135228,2551.54,Imperial Polythene Products Ltd,CR455671,Domestic Refuse,Refuse Sacks,552,
http://statistics.data.gov.uk/id/local-authority/12UE,Huntingdonshire District Council,10/10/2013,135226,3990.17,Imperial Polythene Products Ltd,CR455671,Domestic Refuse,Refuse Sacks,552,
http://statistics.data.gov.uk/id/local-authority/12UE,Huntingdonshire District Council,24/10/2013,135577,7595.25,Bandvulc Tyres Ltd,CR406810,Domestic Refuse,Tyres,630,
http://statistics.data.gov.uk/id/local-authority/12UE,Huntingdonshire District Council,03/10/2013,134816,98.00,M & N Vehicle Services,CR480661,Domestic Refuse,Vehicle Mot,622,
http://statistics.data.gov.uk/id/local-authority/12UE,Huntingdonshire District Council,31/10/2013,135962,1425.00,Dennis Eagle Ltd,CR000200,Domestic Refuse,Vehicle Parts & Fittings,625,
http://statistics.data.gov.uk/id/local-authority/12UE,Huntingdonshire District Council,31/10/2013,136077,1232.46,Dennis Eagle Ltd,CR000200,Domestic Refuse,Vehicle Parts & Fittings,625,
http://statistics.data.gov.uk/id/local-authority/12UE,Huntingdonshire District Council,31/10/2013,136093,1031.81,Dennis Eagle Ltd,CR000200,Domestic Refuse,Vehicle Parts & Fittings,625,
http://statistics.data.gov.uk/id/local-authority/12UE,Huntingdonshire District Council,24/10/2013,135579,694.91,Dennis Eagle Ltd,CR000200,Domestic Refuse,Vehicle Parts & Fittings,625,
http://statistics.data.gov.uk/id/local-authority/12UE,Huntingdonshire District Council,31/10/2013,136078,626.90,Dennis Eagle Ltd,CR000200,Domestic Refuse,Vehicle Parts & Fittings,625,
http://statistics.data.gov.uk/id/local-authority/12UE,Huntingdonshire District Council,17/10/2013,135581,533.15,Dennis Eagle Ltd,CR000200,Domestic Refuse,Vehicle Parts & Fittings,625,
http://statistics.data.gov.uk/id/local-authority/12UE,Huntingdonshire District Council,24/10/2013,136859,590.40,E Rand And Sons,CR405746,Domestic Refuse,Vehicle Parts & Fittings,625,
http://statistics.data.gov.uk/id/local-authority/12UE,Huntingdonshire District Council,03/10/2013,134816,3525.85,M & N Vehicle Services,CR480661,Domestic Refuse,Vehicle Parts & Fittings,625,
http://statistics.data.gov.uk/id/local-authority/12UE,Huntingdonshire District Council,24/10/2013,135702,648.00,Red Forge Ltd,CR405690,Domestic Refuse,Vehicle Parts & Fittings,625,
http://statistics.data.gov.uk/id/local-authority/12UE,Huntingdonshire District Council,24/10/2013,135697,608.45,Terberg Matec Uk Ltd,CR402183,Domestic Refuse,Vehicle Parts & Fittings,625,
http://statistics.data.gov.uk/id/local-authority/12UE,Huntingdonshire District Council,10/10/2013,135880,1356.60,Ecocleen Services Limited,CR406985,E F H And Depots,Building Cleaning Internal,440,
http://statistics.data.gov.uk/id/local-authority/12UE,Huntingdonshire District Council,10/10/2013,135865,2946.64,E-On Energy,CR416430,E F H And Depots,Electricity,420,
http://statistics.data.gov.uk/id/local-authority/12UE,Huntingdonshire District Council,03/10/2013,134378,516.00,G Ferrara Ltd,CR478949,E F H And Depots,Gen Building Mtce - Responsive,303,
http://statistics.data.gov.uk/id/local-authority/12UE,Huntingdonshire District Council,03/10/2013,135067,2976.00,Hygiene Solutions,CR477443,E F H And Depots,Gen Building Mtce - Responsive,303,
http://statistics.data.gov.uk/id/local-authority/12UE,Huntingdonshire District Council,10/10/2013,121897,1371.17,Kershaw Mechanical Services Ltd,CR480268,E F H And Depots,Gen Building Mtce - Responsive,303,
http://statistics.data.gov.uk/id/local-authority/12UE,Huntingdonshire District Council,03/10/2013,134421,642.00,Global Fire Services Ltd,CR482562,E F H And Depots,Plant & Equipment Maintenance,380,
http://statistics.data.gov.uk/id/local-authority/12UE,Huntingdonshire District Council,03/10/2013,135265,535.83,Anglian Water,CR000071,E F H And Depots,Sewerage,433,
http://statistics.data.gov.uk/id/local-authority/12UE,Huntingdonshire District Council,03/10/2013,135265,492.44,Anglian Water,CR000071,E F H And Depots,Water,432,
http://statistics.data.gov.uk/id/local-authority/12UE,Huntingdonshire District Council,31/10/2013,136006,1285.22,Royal Mail,CR027083,Elections,Postage,231,
http://statistics.data.gov.uk/id/local-authority/12UE,Huntingdonshire District Council,24/10/2013,135883,115.54,T N T Post London Ltd,CR479965,Electoral Registration,Postage,231,
http://statistics.data.gov.uk/id/local-authority/12UE,Huntingdonshire District Council,31/10/2013,136001,37.55,T N T Post London Ltd,CR479965,Electoral Registration,Postage,231,
http://statistics.data.gov.uk/id/local-authority/12UE,Huntingdonshire District Council,17/10/2013,135983,1500.00,Community Information Services Ltd,CR478148,Energy Efficiency,Advertising/Promoting Services,255,
http://statistics.data.gov.uk/id/local-authority/12UE,Huntingdonshire District Council,24/10/2013,136401,500.00,Mico Lighting Ltd,CR455984,Energy Efficiency,Equipment Purchases,500,
http://statistics.data.gov.uk/id/local-authority/12UE,Huntingdonshire District Council,31/10/2013,135951,900.00,Marney Hall Consultancy Limited,CR480342,Energy Efficiency,Sitework,359,
http://statistics.data.gov.uk/id/local-authority/12UE,Huntingdonshire District Council,17/10/2013,134819,3391.00,We Heat Uk,CR455247,Environment Equipment Capital,Equipment Purchases,500,
http://statistics.data.gov.uk/id/local-authority/12UE,Huntingdonshire District Council,17/10/2013,135466,2285.21,Konica Minolta,CR478866,Environmental Health M Us,Equipment Purchases,500,
http://statistics.data.gov.uk/id/local-authority/12UE,Huntingdonshire District Council,24/10/2013,136594,297.36,Orange Airtime,CR455799,Environmental Health M Us,Mobile Telephones & Radios,241,
http://statistics.data.gov.uk/id/local-authority/12UE,Huntingdonshire District Council,24/10/2013,136595,148.80,Orange Airtime,CR455799,Environmental Health M Us,Mobile Telephones & Radios,241,
http://statistics.data.gov.uk/id/local-authority/12UE,Huntingdonshire District Council,10/10/2013,134727,30869.33,J Breheny Contractors Ltd,CR000314,Environmental Imps Mgt,Sitework,359,
http://statistics.data.gov.uk/id/local-authority/12UE,Huntingdonshire District Council,24/10/2013,136594,200.24,Orange Airtime,CR455799,Environmental Management,Mobile Telephones & Radios,241,
http://statistics.data.gov.uk/id/local-authority/12UE,Huntingdonshire District Council,24/10/2013,136595,94.08,Orange Airtime,CR455799,Environmental Management,Mobile Telephones & Radios,241,
http://statistics.data.gov.uk/id/local-authority/12UE,Huntingdonshire District Council,31/10/2013,135654,500.00,Verco Advisory Services Ltd,CR455821,Environmental Management,Training - Management,132,
http://statistics.data.gov.uk/id/local-authority/12UE,Huntingdonshire District Council,03/10/2013,135708,2671.32,Freeth Cartwright Llp,CR480787,Estates Properties Capital,Legal Fees,729,
http://statistics.data.gov.uk/id/local-authority/12UE,Huntingdonshire District Council,24/10/2013,136643,1722.40,Freeth Cartwright Llp,CR480787,Estates Properties Capital,Legal Fees,729,
http://statistics.data.gov.uk/id/local-authority/12UE,Huntingdonshire District Council,10/10/2013,135070,26340.00,Pricewaterhouse Coopers Llp,CR487210,External Audit,Audit Fees,701,
http://statistics.data.gov.uk/id/local-authority/12UE,Huntingdonshire District Council,31/10/2013,137245,2069.22,C G Utilities,CR119758,Facilities Mgt,Consultants,711,
http://statistics.data.gov.uk/id/local-authority/12UE,Huntingdonshire District Council,24/10/2013,137029,1622.27,Advanced Business Solutions,CR032921,Financial Services,Software,206,
http://statistics.data.gov.uk/id/local-authority/12UE,Huntingdonshire District Council,24/10/2013,136594,4.80,Orange Airtime,CR455799,Financial Services Mus,Mobile Telephones & Radios,241,
http://statistics.data.gov.uk/id/local-authority/12UE,Huntingdonshire District Council,24/10/2013,136595,12.16,Orange Airtime,CR455799,Financial Services Mus,Mobile Telephones & Radios,241,
http://statistics.data.gov.uk/id/local-authority/12UE,Huntingdonshire District Council,24/10/2013,135985,3000.00,Cipfa Business Limited,CR480088,Financial Services Mus,Training - Other,136,
http://statistics.data.gov.uk/id/local-authority/12UE,Huntingdonshire District Council,24/10/2013,135696,1800.00,Contractauditline Ltd,CR455962,Financial Services Mus,Training - Other,136,
http://statistics.data.gov.uk/id/local-authority/12UE,Huntingdonshire District Council,17/10/2013,135517,588.78,Somers Total Kare Ltd,CR408287,Fleet Management,Vehicle Parts & Fittings,625,
http://statistics.data.gov.uk/id/local-authority/12UE,Huntingdonshire District Council,17/10/2013,135090,1168.80,Swaingrove Imaging,CR478873,Food Safety,Stationery,225,
http://statistics.data.gov.uk/id/local-authority/12UE,Huntingdonshire District Council,10/10/2013,135210,1902.00,Nomix Enviro,CR002353,Grounds Maintenance (Combined),Chemicals,551,
http://statistics.data.gov.uk/id/local-authority/12UE,Huntingdonshire District Council,24/10/2013,135946,2181.60,Euramka Promotions Ltd,CR001864,Grounds Maintenance (Combined),Diesel,615,
http://statistics.data.gov.uk/id/local-authority/12UE,Huntingdonshire District Council,24/10/2013,136034,556.70,Arthur Ibbett Ltd,CR000430,Grounds Maintenance (Combined),Equipment Purchases,500,
http://statistics.data.gov.uk/id/local-authority/12UE,Huntingdonshire District Council,31/10/2013,136520,549.70,Groundsman,CR452706,Grounds Maintenance (Combined),Equipment Purchases,500,
http://statistics.data.gov.uk/id/local-authority/12UE,Huntingdonshire District Council,17/10/2013,135510,1205.90,Staffline Group,CR416827,Grounds Maintenance (Combined),Hired Staff,100,
http://statistics.data.gov.uk/id/local-authority/12UE,Huntingdonshire District Council,10/10/2013,135554,1205.90,Staffline Group,CR416827,Grounds Maintenance (Combined),Hired Staff,100,
http://statistics.data.gov.uk/id/local-authority/12UE,Huntingdonshire District Council,24/10/2013,136011,1205.90,Staffline Group,CR416827,Grounds Maintenance (Combined),Hired Staff,100,
http://statistics.data.gov.uk/id/local-authority/12UE,Huntingdonshire District Council,03/10/2013,134807,1124.42,Staffline Group,CR416827,Grounds Maintenance (Combined),Hired Staff,100,
http://statistics.data.gov.uk/id/local-authority/12UE,Huntingdonshire District Council,31/10/2013,136440,945.17,Staffline Group,CR416827,Grounds Maintenance (Combined),Hired Staff,100,
http://statistics.data.gov.uk/id/local-authority/12UE,Huntingdonshire District Council,10/10/2013,134616,1935.84,J Breheny Contractors Ltd,CR000314,Grounds Maintenance (Combined),Sitework,359,
http://statistics.data.gov.uk/id/local-authority/12UE,Huntingdonshire District Council,10/10/2013,135553,60.00,Ian'S Tyre & Exhaust Centre,CR405836,Grounds Maintenance (Combined),Tyres,630,
http://statistics.data.gov.uk/id/local-authority/12UE,Huntingdonshire District Council,03/10/2013,134469,936.12,Ernest Doe & Sons,CR000261,Grounds Maintenance (Combined),Vehicle Parts & Fittings,625,
http://statistics.data.gov.uk/id/local-authority/12UE,Huntingdonshire District Council,10/10/2013,134736,2322.58,Bgg Associates,CR482424,Head Of Imd,Hired Staff,100,
http://statistics.data.gov.uk/id/local-authority/12UE,Huntingdonshire District Council,31/10/2013,137313,605.76,Lightning Recruitment,CR028184,Head Of Imd,Hired Staff,100,
http://statistics.data.gov.uk/id/local-authority/12UE,Huntingdonshire District Council,03/10/2013,135687,560.33,Lightning Recruitment,CR028184,Head Of Imd,Hired Staff,100,
http://statistics.data.gov.uk/id/local-authority/12UE,Huntingdonshire District Council,10/10/2013,136123,560.33,Lightning Recruitment,CR028184,Head Of Imd,Hired Staff,100,
http://statistics.data.gov.uk/id/local-authority/12UE,Huntingdonshire District Council,17/10/2013,136615,560.33,Lightning Recruitment,CR028184,Head Of Imd,Hired Staff,100,
http://statistics.data.gov.uk/id/local-authority/12UE,Huntingdonshire District Council,24/10/2013,137012,560.33,Lightning Recruitment,CR028184,Head Of Imd,Hired Staff,100,
http://statistics.data.gov.uk/id/local-authority/12UE,Huntingdonshire District Council,24/10/2013,136594,18.96,Orange Airtime,CR455799,Head Of Imd,Mobile Telephones & Radios,241,
http://statistics.data.gov.uk/id/local-authority/12UE,Huntingdonshire District Council,24/10/2013,136595,9.60,Orange Airtime,CR455799,Head Of Imd,Mobile Telephones & Radios,241,
http://statistics.data.gov.uk/id/local-authority/12UE,Huntingdonshire District Council,17/10/2013,136509,6149.47,Zurich Municipal,CR477397,Helpdesk,Equipment Ins/All Risks,510,
http://statistics.data.gov.uk/id/local-authority/12UE,Huntingdonshire District Council,03/10/2013,134499,35773.82,Kelway (Uk) Ltd,CR004345,Helpdesk,Equipment Maintenance,511,
http://statistics.data.gov.uk/id/local-authority/12UE,Huntingdonshire District Council,24/10/2013,135280,1596.00,Teneo Ltd,CR407092,Helpdesk,Equipment Maintenance,511,
http://statistics.data.gov.uk/id/local-authority/12UE,Huntingdonshire District Council,10/10/2013,135683,530.46,Twofold Consulting,CR453929,Helpdesk,Equipment Maintenance,511,
http://statistics.data.gov.uk/id/local-authority/12UE,Huntingdonshire District Council,24/10/2013,135988,3015.00,Edrm Systems Ltd,CR416278,Helpdesk,Hired Staff,100,
http://statistics.data.gov.uk/id/local-authority/12UE,Huntingdonshire District Council,10/10/2013,134733,1350.00,Premier It Recruitment Ltd,CR454029,Helpdesk,Hired Staff,100,
http://statistics.data.gov.uk/id/local-authority/12UE,Huntingdonshire District Council,10/10/2013,135203,1350.00,Premier It Recruitment Ltd,CR454029,Helpdesk,Hired Staff,100,
http://statistics.data.gov.uk/id/local-authority/12UE,Huntingdonshire District Council,10/10/2013,135204,1350.00,Premier It Recruitment Ltd,CR454029,Helpdesk,Hired Staff,100,
http://statistics.data.gov.uk/id/local-authority/12UE,Huntingdonshire District Council,17/10/2013,135682,1350.00,Premier It Recruitment Ltd,CR454029,Helpdesk,Hired Staff,100,
http://statistics.data.gov.uk/id/local-authority/12UE,Huntingdonshire District Council,24/10/2013,135968,1350.00,Premier It Recruitment Ltd,CR454029,Helpdesk,Hired Staff,100,
http://statistics.data.gov.uk/id/local-authority/12UE,Huntingdonshire District Council,24/10/2013,135969,1350.00,Premier It Recruitment Ltd,CR454029,Helpdesk,Hired Staff,100,
http://statistics.data.gov.uk/id/local-authority/12UE,Huntingdonshire District Council,31/10/2013,136602,1350.00,Premier It Recruitment Ltd,CR454029,Helpdesk,Hired Staff,100,
http://statistics.data.gov.uk/id/local-authority/12UE,Huntingdonshire District Council,31/10/2013,136603,1350.00,Premier It Recruitment Ltd,CR454029,Helpdesk,Hired Staff,100,
http://statistics.data.gov.uk/id/local-authority/12UE,Huntingdonshire District Council,10/10/2013,134734,1080.00,Premier It Recruitment Ltd,CR454029,Helpdesk,Hired Staff,100,
http://statistics.data.gov.uk/id/local-authority/12UE,Huntingdonshire District Council,31/10/2013,135981,2062.45,Virgin Media Business,CR033120,Helpdesk,I T Line Rental,248,
http://statistics.data.gov.uk/id/local-authority/12UE,Huntingdonshire District Council,03/10/2013,134500,2063.45,Virgin Media Business,CR033120,Helpdesk,I T Line Rental,248,
http://statistics.data.gov.uk/id/local-authority/12UE,Huntingdonshire District Council,17/10/2013,136311,7109.59,Virgin Media Business/Cpsn,CR455148,Helpdesk,I T Line Rental,248,
http://statistics.data.gov.uk/id/local-authority/12UE,Huntingdonshire District Council,17/10/2013,136312,7109.59,Virgin Media Business/Cpsn,CR455148,Helpdesk,I T Line Rental,248,
http://statistics.data.gov.uk/id/local-authority/12UE,Huntingdonshire District Council,31/10/2013,135970,2955.29,Vodafone Cable & Wireless,CR482316,Helpdesk,I T Line Rental,248,
http://statistics.data.gov.uk/id/local-authority/12UE,Huntingdonshire District Council,24/10/2013,136594,28.80,Orange Airtime,CR455799,Helpdesk,Mobile Telephones & Radios,241,
http://statistics.data.gov.uk/id/local-authority/12UE,Huntingdonshire District Council,24/10/2013,136595,50.81,Orange Airtime,CR455799,Helpdesk,Mobile Telephones & Radios,241,
http://statistics.data.gov.uk/id/local-authority/12UE,Huntingdonshire District Council,24/10/2013,135675,576.00,Comtec,CR480140,Helpdesk,Network Hardware,205,
http://statistics.data.gov.uk/id/local-authority/12UE,Huntingdonshire District Council,10/10/2013,135272,5267.61,Bytes Software Services Ltd,CR455210,Helpdesk,Software,206,
http://statistics.data.gov.uk/id/local-authority/12UE,Huntingdonshire District Council,31/10/2013,135981,1311.97,Virgin Media Business,CR033120,Helpdesk,Telephone Charges,240,
http://statistics.data.gov.uk/id/local-authority/12UE,Huntingdonshire District Council,03/10/2013,134500,1100.44,Virgin Media Business,CR033120,Helpdesk,Telephone Charges,240,
http://statistics.data.gov.uk/id/local-authority/12UE,Huntingdonshire District Council,03/10/2013,134515,672.00,Alexanders,CR415843,Homelessness Management,Removal/Storage,750,
http://statistics.data.gov.uk/id/local-authority/12UE,Huntingdonshire District Council,03/10/2013,134523,672.00,Alexanders,CR415843,Homelessness Management,Removal/Storage,750,
http://statistics.data.gov.uk/id/local-authority/12UE,Huntingdonshire District Council,17/10/2013,136616,578.52,D&M Removals & Clearance,CR455988,Homelessness Management,Removal/Storage,750,
http://statistics.data.gov.uk/id/local-authority/12UE,Huntingdonshire District Council,17/10/2013,136416,1080.00,Safemoves Removals Ltd,CR482611,Homelessness Management,Removal/Storage,750,
http://statistics.data.gov.uk/id/local-authority/12UE,Huntingdonshire District Council,17/10/2013,135177,1288.65,Sarfo Solicitors,CR415973,Housing  Benefits Admin,Legal Fees,729,
http://statistics.data.gov.uk/id/local-authority/12UE,Huntingdonshire District Council,10/10/2013,134513,974.14,James Andrews Recruitment,CR453753,Housing Management Units,Hired Staff,100,
http://statistics.data.gov.uk/id/local-authority/12UE,Huntingdonshire District Council,24/10/2013,135212,974.14,James Andrews Recruitment,CR453753,Housing Management Units,Hired Staff,100,
http://statistics.data.gov.uk/id/local-authority/12UE,Huntingdonshire District Council,31/10/2013,135659,974.14,James Andrews Recruitment,CR453753,Housing Management Units,Hired Staff,100,
http://statistics.data.gov.uk/id/local-authority/12UE,Huntingdonshire District Council,17/10/2013,134944,960.97,James Andrews Recruitment,CR453753,Housing Management Units,Hired Staff,100,
http://statistics.data.gov.uk/id/local-authority/12UE,Huntingdonshire District Council,24/10/2013,136594,33.36,Orange Airtime,CR455799,Housing Management Units,Mobile Telephones & Radios,241,
http://statistics.data.gov.uk/id/local-authority/12UE,Huntingdonshire District Council,24/10/2013,136595,16.80,Orange Airtime,CR455799,Housing Management Units,Mobile Telephones & Radios,241,
http://statistics.data.gov.uk/id/local-authority/12UE,Huntingdonshire District Council,24/10/2013,136338,1257.44,Swalec,CR407130,Housing Services Other,Electricity,420,
http://statistics.data.gov.uk/id/local-authority/12UE,Huntingdonshire District Council,17/10/2013,133160,999.80,Luminus Homes,CR401276,Housing Services Other,Gen Building Mtce - Responsive,303,
http://statistics.data.gov.uk/id/local-authority/12UE,Huntingdonshire District Council,03/10/2013,135207,21420.00,Cambridge City Council,CR477360,Housing Surveys,Grants (Paid Out),800,
http://statistics.data.gov.uk/id/local-authority/12UE,Huntingdonshire District Council,24/10/2013,136399,2208.00,Rsa Environmental Health Limited,CR482415,Human Resources,Consultants,711,
http://statistics.data.gov.uk/id/local-authority/12UE,Huntingdonshire District Council,03/10/2013,134936,960.00,Tjw Hr Ltd,CR455934,Human Resources,Human Resources Services,779,
http://statistics.data.gov.uk/id/local-authority/12UE,Huntingdonshire District Council,24/10/2013,136149,5888.77,Hinchingbrooke Healthcare Nhs,CR003003,Human Resources,Medical Fees,734,
http://statistics.data.gov.uk/id/local-authority/12UE,Huntingdonshire District Council,24/10/2013,136594,28.80,Orange Airtime,CR455799,Human Resources,Mobile Telephones & Radios,241,
http://statistics.data.gov.uk/id/local-authority/12UE,Huntingdonshire District Council,24/10/2013,136595,14.40,Orange Airtime,CR455799,Human Resources,Mobile Telephones & Radios,241,
http://statistics.data.gov.uk/id/local-authority/12UE,Huntingdonshire District Council,03/10/2013,134583,5940.00,West Anglia Training Assoc.Ltd,CR025035,Human Resources,Training - Operational,131,
http://statistics.data.gov.uk/id/local-authority/12UE,Huntingdonshire District Council,24/10/2013,135988,1005.00,Edrm Systems Ltd,CR416278,Imd Trading,Hired Staff,100,
http://statistics.data.gov.uk/id/local-authority/12UE,Huntingdonshire District Council,24/10/2013,136594,18.96,Orange Airtime,CR455799,Imd Trading,Mobile Telephones & Radios,241,
http://statistics.data.gov.uk/id/local-authority/12UE,Huntingdonshire District Council,24/10/2013,136595,9.60,Orange Airtime,CR455799,Imd Trading,Mobile Telephones & Radios,241,
http://statistics.data.gov.uk/id/local-authority/12UE,Huntingdonshire District Council,10/10/2013,134743,1244.76,Phoenix Software Ltd,CR031918,Imd Trading,Software,206,
http://statistics.data.gov.uk/id/local-authority/12UE,Huntingdonshire District Council,17/10/2013,136509,265.00,Zurich Municipal,CR477397,Industrial Properties,Ins (Service Related),260,
http://statistics.data.gov.uk/id/local-authority/12UE,Huntingdonshire District Council,24/10/2013,136594,18.96,Orange Airtime,CR455799,Information Manager,Mobile Telephones & Radios,241,
http://statistics.data.gov.uk/id/local-authority/12UE,Huntingdonshire District Council,24/10/2013,136595,9.60,Orange Airtime,CR455799,Information Manager,Mobile Telephones & Radios,241,
http://statistics.data.gov.uk/id/local-authority/12UE,Huntingdonshire District Council,24/10/2013,136933,2940.00,Cambridgeshire County Council,CR017440,Information Manager,Subcontractors,777,
http://statistics.data.gov.uk/id/local-authority/12UE,Huntingdonshire District Council,17/10/2013,136509,57083.89,Zurich Municipal,CR477397,Insurance Premium Holding,Building Insurance,414,
http://statistics.data.gov.uk/id/local-authority/12UE,Huntingdonshire District Council,17/10/2013,136509,4970.40,Zurich Municipal,CR477397,Insurance Premium Holding,Equipment Ins/All Risks,510,
http://statistics.data.gov.uk/id/local-authority/12UE,Huntingdonshire District Council,17/10/2013,136509,344.60,Zurich Municipal,CR477397,Insurance Premium Holding,Ins (Service Related),260,
http://statistics.data.gov.uk/id/local-authority/12UE,Huntingdonshire District Council,17/10/2013,136509,27833.11,Zurich Municipal,CR477397,Insurance Premium Holding,Insurance Employers,162,
http://statistics.data.gov.uk/id/local-authority/12UE,Huntingdonshire District Council,17/10/2013,136509,1431.00,Zurich Municipal,CR477397,Insurance Premium Holding,Insurance Libel,167,
http://statistics.data.gov.uk/id/local-authority/12UE,Huntingdonshire District Council,17/10/2013,136509,7464.19,Zurich Municipal,CR477397,Insurance Premium Holding,Insurance Officials Indemnity,168,
http://statistics.data.gov.uk/id/local-authority/12UE,Huntingdonshire District Council,17/10/2013,136509,118172.73,Zurich Municipal,CR477397,Insurance Premium Holding,Insurance Public Liability,160,
http://statistics.data.gov.uk/id/local-authority/12UE,Huntingdonshire District Council,10/10/2013,135056,214.20,T N T Post London Ltd,CR479965,Internal Services Holding,Postage,231,
http://statistics.data.gov.uk/id/local-authority/12UE,Huntingdonshire District Council,17/10/2013,136509,6167.11,Zurich Municipal,CR477397,Land Charges,Ins (Service Related),260,
http://statistics.data.gov.uk/id/local-authority/12UE,Huntingdonshire District Council,03/10/2013,135166,99737.38,R G Carter Peterborough,CR401511,Leisure Centres Capital,Gen Building Mtce - Planned,304,
http://statistics.data.gov.uk/id/local-authority/12UE,Huntingdonshire District Council,24/10/2013,136396,96234.88,R G Carter Peterborough,CR401511,Leisure Centres Capital,Gen Building Mtce - Planned,304,
http://statistics.data.gov.uk/id/local-authority/12UE,Huntingdonshire District Council,24/10/2013,136594,4.80,Orange Airtime,CR455799,Leisure Centres Overall,Mobile Telephones & Radios,241,
http://statistics.data.gov.uk/id/local-authority/12UE,Huntingdonshire District Council,24/10/2013,136595,2.40,Orange Airtime,CR455799,Leisure Centres Overall,Mobile Telephones & Radios,241,
http://statistics.data.gov.uk/id/local-authority/12UE,Huntingdonshire District Council,24/10/2013,135601,270.00,Paxton Lakes Sailing Club,CR406534,Leisure Development,Hire Of Rooms,411,
http://statistics.data.gov.uk/id/local-authority/12UE,Huntingdonshire District Council,03/10/2013,134604,1750.00,Paxton Lakes Sailing Club,CR406534,Leisure Development,Instructors/Tutors,720,
http://statistics.data.gov.uk/id/local-authority/12UE,Huntingdonshire District Council,24/10/2013,135601,270.00,Paxton Lakes Sailing Club,CR406534,Leisure Development,Instructors/Tutors,720,
http://statistics.data.gov.uk/id/local-authority/12UE,Huntingdonshire District Council,24/10/2013,136594,43.20,Orange Airtime,CR455799,Leisure Development,Mobile Telephones & Radios,241,
http://statistics.data.gov.uk/id/local-authority/12UE,Huntingdonshire District Council,24/10/2013,136595,21.60,Orange Airtime,CR455799,Leisure Development,Mobile Telephones & Radios,241,
http://statistics.data.gov.uk/id/local-authority/12UE,Huntingdonshire District Council,31/10/2013,136387,595.00,Wright Foundation,CR403086,Leisure Development,Training - Operational,131,
http://statistics.data.gov.uk/id/local-authority/12UE,Huntingdonshire District Council,31/10/2013,136531,1388.67,Nationwide Crash Repair Centre,CR480644,Leisure Development,Vehicle Insurance,610,
http://statistics.data.gov.uk/id/local-authority/12UE,Huntingdonshire District Council,10/10/2013,135492,585.60,Mogo Uk,CR410378,Licences,Licence Plates,564,
http://statistics.data.gov.uk/id/local-authority/12UE,Huntingdonshire District Council,24/10/2013,136594,4.80,Orange Airtime,CR455799,Licences,Mobile Telephones & Radios,241,
http://statistics.data.gov.uk/id/local-authority/12UE,Huntingdonshire District Council,24/10/2013,136595,4.80,Orange Airtime,CR455799,Licences,Mobile Telephones & Radios,241,
http://statistics.data.gov.uk/id/local-authority/12UE,Huntingdonshire District Council,10/10/2013,135492,17.88,Mogo Uk,CR410378,Licences,Postage,231,
http://statistics.data.gov.uk/id/local-authority/12UE,Huntingdonshire District Council,31/10/2013,135518,2022.65,T C Harrison Ford,CR405072,Licences,Vehicle Inspection,618,
http://statistics.data.gov.uk/id/local-authority/12UE,Huntingdonshire District Council,24/10/2013,135929,19428.68,Deloitte Llp,CR400573,Local Development Framework,Consultants,711,
http://statistics.data.gov.uk/id/local-authority/12UE,Huntingdonshire District Council,24/10/2013,136594,19.20,Orange Airtime,CR455799,Managing Directors,Mobile Telephones & Radios,241,
http://statistics.data.gov.uk/id/local-authority/12UE,Huntingdonshire District Council,24/10/2013,136595,9.60,Orange Airtime,CR455799,Managing Directors,Mobile Telephones & Radios,241,
http://statistics.data.gov.uk/id/local-authority/12UE,Huntingdonshire District Council,03/10/2013,135479,594.60,K & M Lighting Services Ltd,CR455166,Markets,Sitework,359,
http://statistics.data.gov.uk/id/local-authority/12UE,Huntingdonshire District Council,24/10/2013,135840,1161.61,Thomas Fattorini Ltd,CR405765,Member Allowances & Support,Equipment Maintenance,511,
http://statistics.data.gov.uk/id/local-authority/12UE,Huntingdonshire District Council,31/10/2013,135981,6.90,Virgin Media Business,CR033120,Member Allowances & Support,I T Line Rental,248,
http://statistics.data.gov.uk/id/local-authority/12UE,Huntingdonshire District Council,03/10/2013,134500,-7.82,Virgin Media Business,CR033120,Member Allowances & Support,I T Line Rental,248,
http://statistics.data.gov.uk/id/local-authority/12UE,Huntingdonshire District Council,24/10/2013,136594,91.20,Orange Airtime,CR455799,Member Allowances & Support,Mobile Telephones & Radios,241,
http://statistics.data.gov.uk/id/local-authority/12UE,Huntingdonshire District Council,24/10/2013,136595,45.60,Orange Airtime,CR455799,Member Allowances & Support,Mobile Telephones & Radios,241,
http://statistics.data.gov.uk/id/local-authority/12UE,Huntingdonshire District Council,31/10/2013,135474,807.04,Portakabin Ltd,CR416090,Miscellaneous Grants,Equipment Hire,507,
http://statistics.data.gov.uk/id/local-authority/12UE,Huntingdonshire District Council,10/10/2013,134684,2500.00,Care Network,CR477579,Miscellaneous Grants,Grants (Paid Out),800,
http://statistics.data.gov.uk/id/local-authority/12UE,Huntingdonshire District Council,10/10/2013,134682,4750.00,Disability Information Service Huntingdonshir,CR408884,Miscellaneous Grants,Grants (Paid Out),800,
http://statistics.data.gov.uk/id/local-authority/12UE,Huntingdonshire District Council,24/10/2013,136054,850.20,Portakabin Ltd,CR478566,Miscellaneous Grants,Grants (Paid Out),800,
http://statistics.data.gov.uk/id/local-authority/12UE,Huntingdonshire District Council,10/10/2013,135902,2067.20,Anglian Water,CR011617,Miscellaneous Grants,Sitework,359,
http://statistics.data.gov.uk/id/local-authority/12UE,Huntingdonshire District Council,16/10/2013,128018,1412.40,Uk Power Networks,CR403938,Miscellaneous Grants,Sitework,359,
http://statistics.data.gov.uk/id/local-authority/12UE,Huntingdonshire District Council,16/10/2013,136559,-1412.40,Uk Power Networks,CR403938,Miscellaneous Grants,Sitework,359,
http://statistics.data.gov.uk/id/local-authority/12UE,Huntingdonshire District Council,17/10/2013,135117,720.00,Dal-Rod Uk Ltd,CR002782,Nightsoil Collection,Subcontractors,777,
http://statistics.data.gov.uk/id/local-authority/12UE,Huntingdonshire District Council,17/10/2013,135872,722.02,Direct Access Supplies Ltd,CR455267,Oak Tree Health Centre,Sitework,359,
http://statistics.data.gov.uk/id/local-authority/12UE,Huntingdonshire District Council,17/10/2013,136450,533.74,Heineken Uk Ltd,CR032678,One Leisure Huntingdon,Bar Provisions,558,
http://statistics.data.gov.uk/id/local-authority/12UE,Huntingdonshire District Council,31/10/2013,135884,2146.93,Ecocleen Services Limited,CR406985,One Leisure Huntingdon,Building Cleaning Internal,440,
http://statistics.data.gov.uk/id/local-authority/12UE,Huntingdonshire District Council,31/10/2013,136548,1387.50,Ecocleen Services Limited,CR406985,One Leisure Huntingdon,Building Cleaning Internal,440,
http://statistics.data.gov.uk/id/local-authority/12UE,Huntingdonshire District Council,31/10/2013,136395,297.62,G4s Cashservices Uk Ltd,CR407133,One Leisure Huntingdon,Cash Collection,702,
http://statistics.data.gov.uk/id/local-authority/12UE,Huntingdonshire District Council,10/10/2013,135864,4116.29,E-On Energy,CR416430,One Leisure Huntingdon,Electricity,420,
http://statistics.data.gov.uk/id/local-authority/12UE,Huntingdonshire District Council,24/10/2013,136337,3447.43,Swalec,CR407130,One Leisure Huntingdon,Electricity,420,
http://statistics.data.gov.uk/id/local-authority/12UE,Huntingdonshire District Council,17/10/2013,136547,894.00,House Of Play Ltd,CR479346,One Leisure Huntingdon,Equipment Maintenance,511,
http://statistics.data.gov.uk/id/local-authority/12UE,Huntingdonshire District Council,17/10/2013,136438,14372.75,Technogym Uk Ltd,CR033037,One Leisure Huntingdon,Equipment Maintenance,511,
http://statistics.data.gov.uk/id/local-authority/12UE,Huntingdonshire District Council,24/10/2013,136526,1471.44,Safe Space Lockers Limited,CR455801,One Leisure Huntingdon,Fixtures & Fittings,379,
http://statistics.data.gov.uk/id/local-authority/12UE,Huntingdonshire District Council,17/10/2013,136335,1632.82,E-On Energy,CR416430,One Leisure Huntingdon,Gas,421,
http://statistics.data.gov.uk/id/local-authority/12UE,Huntingdonshire District Council,17/10/2013,136326,667.18,E-On Energy,CR416430,One Leisure Huntingdon,Gas,421,
http://statistics.data.gov.uk/id/local-authority/12UE,Huntingdonshire District Council,24/10/2013,136544,7938.00,Milk Leisure Ltd,CR455268,One Leisure Huntingdon,Gen Building Mtce - Planned,304,
http://statistics.data.gov.uk/id/local-authority/12UE,Huntingdonshire District Council,31/10/2013,136539,649.20,Roger Wilson Electronics,CR028041,One Leisure Huntingdon,Gen Building Mtce - Planned,304,
http://statistics.data.gov.uk/id/local-authority/12UE,Huntingdonshire District Council,17/10/2013,136591,840.00,Huntree Fencing,CR027479,One Leisure Huntingdon,Grounds Mtce Contractors,351,
http://statistics.data.gov.uk/id/local-authority/12UE,Huntingdonshire District Council,17/10/2013,136512,4128.00,Technogym Uk Ltd,CR033037,One Leisure Huntingdon,Materials,550,
http://statistics.data.gov.uk/id/local-authority/12UE,Huntingdonshire District Council,10/10/2013,134832,897.05,Swimrite Suppliers Ltd (Srs Leisure),CR478711,One Leisure Huntingdon,Materials For Resale,570,
http://statistics.data.gov.uk/id/local-authority/12UE,Huntingdonshire District Council,31/10/2013,137033,1599.72,Anglian Water,CR000071,One Leisure Huntingdon,Sewerage,433,
http://statistics.data.gov.uk/id/local-authority/12UE,Huntingdonshire District Council,31/10/2013,135981,0.16,Virgin Media Business,CR033120,One Leisure Huntingdon,Telephone Charges,240,
http://statistics.data.gov.uk/id/local-authority/12UE,Huntingdonshire District Council,03/10/2013,134500,0.13,Virgin Media Business,CR033120,One Leisure Huntingdon,Telephone Charges,240,
http://statistics.data.gov.uk/id/local-authority/12UE,Huntingdonshire District Council,03/10/2013,134899,593.88,Glaxosmithkline,CR010424,One Leisure Huntingdon,Vending Materials,560,
http://statistics.data.gov.uk/id/local-authority/12UE,Huntingdonshire District Council,31/10/2013,137033,1514.31,Anglian Water,CR000071,One Leisure Huntingdon,Water,432,
http://statistics.data.gov.uk/id/local-authority/12UE,Huntingdonshire District Council,24/10/2013,136874,2167.13,Anglian Water,CR000071,One Leisure Huntingdon,Water,432,
http://statistics.data.gov.uk/id/local-authority/12UE,Huntingdonshire District Council,24/10/2013,136873,1149.42,Anglian Water,CR000071,One Leisure Huntingdon,Water,432,
http://statistics.data.gov.uk/id/local-authority/12UE,Huntingdonshire District Council,31/10/2013,136317,1013.81,Ecocleen Services Limited,CR406985,One Leisure Ramsey,Building Cleaning Internal,440,
http://statistics.data.gov.uk/id/local-authority/12UE,Huntingdonshire District Council,31/10/2013,136395,74.41,G4s Cashservices Uk Ltd,CR407133,One Leisure Ramsey,Cash Collection,702,
http://statistics.data.gov.uk/id/local-authority/12UE,Huntingdonshire District Council,03/10/2013,135450,747.93,Brenntag Uk Ltd,CR015017,One Leisure Ramsey,Chemicals,551,
http://statistics.data.gov.uk/id/local-authority/12UE,Huntingdonshire District Council,24/10/2013,136340,2692.69,Swalec,CR407130,One Leisure Ramsey,Electricity,420,
http://statistics.data.gov.uk/id/local-authority/12UE,Huntingdonshire District Council,03/10/2013,134716,560.00,Rlss Uk Enterprises Ltd - Lifesavers Direct,CR401615,One Leisure Ramsey,Equipment Purchases,500,
http://statistics.data.gov.uk/id/local-authority/12UE,Huntingdonshire District Council,17/10/2013,136333,1080.32,E-On Energy,CR416430,One Leisure Ramsey,Gas,421,
http://statistics.data.gov.uk/id/local-authority/12UE,Huntingdonshire District Council,03/10/2013,135454,635.94,Burgin Ltd,CR482438,One Leisure Ramsey,Gen Building Mtce - Planned,304,
http://statistics.data.gov.uk/id/local-authority/12UE,Huntingdonshire District Council,24/10/2013,135455,504.00,Mcintyre Leisure,CR404059,One Leisure Ramsey,Gen Building Mtce - Planned,304,
http://statistics.data.gov.uk/id/local-authority/12UE,Huntingdonshire District Council,17/10/2013,135039,511.20,Clanpress King'S Lynn Ltd,CR413516,One Leisure Ramsey,Printing (External),220,
http://statistics.data.gov.uk/id/local-authority/12UE,Huntingdonshire District Council,31/10/2013,137031,4472.82,Anglian Water,CR000071,One Leisure Ramsey,Sewerage,433,
http://statistics.data.gov.uk/id/local-authority/12UE,Huntingdonshire District Council,03/10/2013,135458,1089.30,Ecocleen Services Limited,CR406985,One Leisure Sawtry,Building Cleaning Internal,440,
http://statistics.data.gov.uk/id/local-authority/12UE,Huntingdonshire District Council,31/10/2013,136793,1089.30,Ecocleen Services Limited,CR406985,One Leisure Sawtry,Building Cleaning Internal,440,
http://statistics.data.gov.uk/id/local-authority/12UE,Huntingdonshire District Council,31/10/2013,136395,74.41,G4s Cashservices Uk Ltd,CR407133,One Leisure Sawtry,Cash Collection,702,
http://statistics.data.gov.uk/id/local-authority/12UE,Huntingdonshire District Council,24/10/2013,136341,3706.02,Swalec,CR407130,One Leisure Sawtry,Electricity,420,
http://statistics.data.gov.uk/id/local-authority/12UE,Huntingdonshire District Council,03/10/2013,135239,943.72,Technogym Uk Ltd,CR033037,One Leisure Sawtry,Equipment Maintenance,511,
http://statistics.data.gov.uk/id/local-authority/12UE,Huntingdonshire District Council,17/10/2013,136332,1300.28,E-On Energy,CR416430,One Leisure Sawtry,Gas,421,
http://statistics.data.gov.uk/id/local-authority/12UE,Huntingdonshire District Council,24/10/2013,136794,2147.16,Burgin Ltd,CR482438,One Leisure Sawtry,Gen Building Mtce - Planned,304,
http://statistics.data.gov.uk/id/local-authority/12UE,Huntingdonshire District Council,24/10/2013,136369,1331.72,Booker Cash And Carry,CR027611,One Leisure St Ives,Bar Provisions,558,
http://statistics.data.gov.uk/id/local-authority/12UE,Huntingdonshire District Council,03/10/2013,135033,708.35,Booker Cash And Carry,CR027611,One Leisure St Ives,Bar Provisions,558,
http://statistics.data.gov.uk/id/local-authority/12UE,Huntingdonshire District Council,10/10/2013,135122,628.91,Booker Cash And Carry,CR027611,One Leisure St Ives,Bar Provisions,558,
http://statistics.data.gov.uk/id/local-authority/12UE,Huntingdonshire District Council,10/10/2013,135639,360.86,Booker Cash And Carry,CR027611,One Leisure St Ives,Bar Provisions,558,
http://statistics.data.gov.uk/id/local-authority/12UE,Huntingdonshire District Council,24/10/2013,135941,460.72,Booker Cash And Carry,CR027611,One Leisure St Ives,Bar Provisions,558,
http://statistics.data.gov.uk/id/local-authority/12UE,Huntingdonshire District Council,31/10/2013,136364,1769.78,Heineken Uk Ltd,CR032678,One Leisure St Ives,Bar Provisions,558,
http://statistics.data.gov.uk/id/local-authority/12UE,Huntingdonshire District Council,31/10/2013,136370,1330.81,Heineken Uk Ltd,CR032678,One Leisure St Ives,Bar Provisions,558,
http://statistics.data.gov.uk/id/local-authority/12UE,Huntingdonshire District Council,31/10/2013,136371,901.45,Heineken Uk Ltd,CR032678,One Leisure St Ives,Bar Provisions,558,
http://statistics.data.gov.uk/id/local-authority/12UE,Huntingdonshire District Council,03/10/2013,134861,788.50,Heineken Uk Ltd,CR032678,One Leisure St Ives,Bar Provisions,558,
http://statistics.data.gov.uk/id/local-authority/12UE,Huntingdonshire District Council,24/10/2013,135637,583.76,Heineken Uk Ltd,CR032678,One Leisure St Ives,Bar Provisions,558,
http://statistics.data.gov.uk/id/local-authority/12UE,Huntingdonshire District Council,10/10/2013,134862,549.43,Heineken Uk Ltd,CR032678,One Leisure St Ives,Bar Provisions,558,
http://statistics.data.gov.uk/id/local-authority/12UE,Huntingdonshire District Council,31/10/2013,136395,223.22,G4s Cashservices Uk Ltd,CR407133,One Leisure St Ives,Cash Collection,702,
http://statistics.data.gov.uk/id/local-authority/12UE,Huntingdonshire District Council,24/10/2013,136369,14.01,Booker Cash And Carry,CR027611,One Leisure St Ives,Catering Materials,559,
http://statistics.data.gov.uk/id/local-authority/12UE,Huntingdonshire District Council,03/10/2013,135033,408.04,Booker Cash And Carry,CR027611,One Leisure St Ives,Catering Materials,559,
http://statistics.data.gov.uk/id/local-authority/12UE,Huntingdonshire District Council,10/10/2013,135122,439.66,Booker Cash And Carry,CR027611,One Leisure St Ives,Catering Materials,559,
http://statistics.data.gov.uk/id/local-authority/12UE,Huntingdonshire District Council,10/10/2013,135639,445.99,Booker Cash And Carry,CR027611,One Leisure St Ives,Catering Materials,559,
http://statistics.data.gov.uk/id/local-authority/12UE,Huntingdonshire District Council,24/10/2013,135941,82.82,Booker Cash And Carry,CR027611,One Leisure St Ives,Catering Materials,559,
http://statistics.data.gov.uk/id/local-authority/12UE,Huntingdonshire District Council,10/10/2013,135638,429.60,Booker Cash And Carry,CR027611,One Leisure St Ives,Catering Materials,559,
http://statistics.data.gov.uk/id/local-authority/12UE,Huntingdonshire District Council,31/10/2013,136380,836.76,Brenntag Uk Ltd,CR015017,One Leisure St Ives,Chemicals,551,
http://statistics.data.gov.uk/id/local-authority/12UE,Huntingdonshire District Council,24/10/2013,135941,9.58,Booker Cash And Carry,CR027611,One Leisure St Ives,Cleaning Materials,443,
http://statistics.data.gov.uk/id/local-authority/12UE,Huntingdonshire District Council,24/10/2013,136369,65.33,Booker Cash And Carry,CR027611,One Leisure St Ives,Confectionery,572,
http://statistics.data.gov.uk/id/local-authority/12UE,Huntingdonshire District Council,10/10/2013,135122,35.97,Booker Cash And Carry,CR027611,One Leisure St Ives,Confectionery,572,
http://statistics.data.gov.uk/id/local-authority/12UE,Huntingdonshire District Council,10/10/2013,135639,5.49,Booker Cash And Carry,CR027611,One Leisure St Ives,Confectionery,572,
http://statistics.data.gov.uk/id/local-authority/12UE,Huntingdonshire District Council,24/10/2013,135941,83.48,Booker Cash And Carry,CR027611,One Leisure St Ives,Confectionery,572,
http://statistics.data.gov.uk/id/local-authority/12UE,Huntingdonshire District Council,10/10/2013,135875,8741.76,E-On Energy,CR416430,One Leisure St Ives,Electricity,420,
http://statistics.data.gov.uk/id/local-authority/12UE,Huntingdonshire District Council,10/10/2013,135868,2436.46,E-On Energy,CR416430,One Leisure St Ives,Electricity,420,
http://statistics.data.gov.uk/id/local-authority/12UE,Huntingdonshire District Council,17/10/2013,136144,1500.00,2 Ton Productions,CR410213,One Leisure St Ives,Entertainments Inc Cable Tv,744,
http://statistics.data.gov.uk/id/local-authority/12UE,Huntingdonshire District Council,31/10/2013,137273,543.60,Sky Business,CR033259,One Leisure St Ives,Entertainments Inc Cable Tv,744,
http://statistics.data.gov.uk/id/local-authority/12UE,Huntingdonshire District Council,17/10/2013,135910,500.00,Starlite Roadshow,CR024127,One Leisure St Ives,Entertainments Inc Cable Tv,744,
http://statistics.data.gov.uk/id/local-authority/12UE,Huntingdonshire District Council,17/10/2013,135910,30.00,Starlite Roadshow,CR024127,One Leisure St Ives,Equipment Hire,507,
http://statistics.data.gov.uk/id/local-authority/12UE,Huntingdonshire District Council,17/10/2013,135174,1862.24,Honeywell Novar Systems,CR406826,One Leisure St Ives,Equipment Maintenance,511,
http://statistics.data.gov.uk/id/local-authority/12UE,Huntingdonshire District Council,10/10/2013,135635,1538.00,Lynx Bowling Services,CR455532,One Leisure St Ives,Equipment Maintenance,511,
http://statistics.data.gov.uk/id/local-authority/12UE,Huntingdonshire District Council,31/10/2013,135945,905.40,Bob Hopper & Co,CR003312,One Leisure St Ives,Equipment Purchases,500,
http://statistics.data.gov.uk/id/local-authority/12UE,Huntingdonshire District Council,17/10/2013,136331,5071.67,E-On Energy,CR416430,One Leisure St Ives,Gas,421,
http://statistics.data.gov.uk/id/local-authority/12UE,Huntingdonshire District Council,10/10/2013,135651,1427.40,Burgin Ltd,CR482438,One Leisure St Ives,Gen Building Mtce - Planned,304,
http://statistics.data.gov.uk/id/local-authority/12UE,Huntingdonshire District Council,03/10/2013,135678,1124.50,Burgin Ltd,CR482438,One Leisure St Ives,Gen Building Mtce - Planned,304,
http://statistics.data.gov.uk/id/local-authority/12UE,Huntingdonshire District Council,10/10/2013,135650,1030.60,Burgin Ltd,CR482438,One Leisure St Ives,Gen Building Mtce - Planned,304,
http://statistics.data.gov.uk/id/local-authority/12UE,Huntingdonshire District Council,10/10/2013,135655,957.90,Burgin Ltd,CR482438,One Leisure St Ives,Gen Building Mtce - Planned,304,
http://statistics.data.gov.uk/id/local-authority/12UE,Huntingdonshire District Council,10/10/2013,135652,560.40,Burgin Ltd,CR482438,One Leisure St Ives,Gen Building Mtce - Planned,304,
http://statistics.data.gov.uk/id/local-authority/12UE,Huntingdonshire District Council,03/10/2013,135643,2160.00,R G Carter Peterborough,CR401511,One Leisure St Ives,Gen Building Mtce - Planned,304,
http://statistics.data.gov.uk/id/local-authority/12UE,Huntingdonshire District Council,31/10/2013,135930,756.00,Genesis  Lifts Ltd,CR478241,One Leisure St Ives,Gen Building Mtce - Responsive,303,
http://statistics.data.gov.uk/id/local-authority/12UE,Huntingdonshire District Council,31/10/2013,137261,1141.85,Roger Wilson Electronics,CR028041,One Leisure St Ives,Gen Building Mtce - Responsive,303,
http://statistics.data.gov.uk/id/local-authority/12UE,Huntingdonshire District Council,10/10/2013,135944,1262.90,Roger Wilson Electronics,CR028041,One Leisure St Ives,Gen Building Mtce - Responsive,303,
http://statistics.data.gov.uk/id/local-authority/12UE,Huntingdonshire District Council,17/10/2013,136391,840.00,Roof Safety Solutions,CR478995,One Leisure St Ives,Gen Building Mtce - Responsive,303,
http://statistics.data.gov.uk/id/local-authority/12UE,Huntingdonshire District Council,24/10/2013,135923,915.84,Sherriff Amenity Services,CR416316,One Leisure St Ives,Grounds Mtce Contractors,351,
http://statistics.data.gov.uk/id/local-authority/12UE,Huntingdonshire District Council,24/10/2013,135636,721.50,Affinity Nationwide Support Services,CR482612,One Leisure St Ives,Hired Staff,100,
http://statistics.data.gov.uk/id/local-authority/12UE,Huntingdonshire District Council,24/10/2013,136369,10.78,Booker Cash And Carry,CR027611,One Leisure St Ives,Materials,550,
http://statistics.data.gov.uk/id/local-authority/12UE,Huntingdonshire District Council,03/10/2013,135033,84.45,Booker Cash And Carry,CR027611,One Leisure St Ives,Materials,550,
http://statistics.data.gov.uk/id/local-authority/12UE,Huntingdonshire District Council,10/10/2013,135122,62.93,Booker Cash And Carry,CR027611,One Leisure St Ives,Materials,550,
http://statistics.data.gov.uk/id/local-authority/12UE,Huntingdonshire District Council,10/10/2013,135639,73.25,Booker Cash And Carry,CR027611,One Leisure St Ives,Materials,550,
http://statistics.data.gov.uk/id/local-authority/12UE,Huntingdonshire District Council,24/10/2013,135941,133.54,Booker Cash And Carry,CR027611,One Leisure St Ives,Materials,550,
http://statistics.data.gov.uk/id/local-authority/12UE,Huntingdonshire District Council,10/10/2013,135638,74.84,Booker Cash And Carry,CR027611,One Leisure St Ives,Materials,550,
http://statistics.data.gov.uk/id/local-authority/12UE,Huntingdonshire District Council,17/10/2013,134859,1233.66,Swimrite Suppliers Ltd (Srs Leisure),CR478711,One Leisure St Ives,Materials For Resale,570,
http://statistics.data.gov.uk/id/local-authority/12UE,Huntingdonshire District Council,24/10/2013,136594,28.80,Orange Airtime,CR455799,One Leisure St Ives,Mobile Telephones & Radios,241,
http://statistics.data.gov.uk/id/local-authority/12UE,Huntingdonshire District Council,24/10/2013,136595,14.40,Orange Airtime,CR455799,One Leisure St Ives,Mobile Telephones & Radios,241,
http://statistics.data.gov.uk/id/local-authority/12UE,Huntingdonshire District Council,10/10/2013,135159,574.32,Konica Minolta,CR478866,One Leisure St Ives,Other Office Equipment,209,
http://statistics.data.gov.uk/id/local-authority/12UE,Huntingdonshire District Council,10/10/2013,135635,257.04,Lynx Bowling Services,CR455532,One Leisure St Ives,Plant & Equipment Maintenance,380,
http://statistics.data.gov.uk/id/local-authority/12UE,Huntingdonshire District Council,31/10/2013,137261,480.00,Roger Wilson Electronics,CR028041,One Leisure St Ives,Plant & Equipment Maintenance,380,
http://statistics.data.gov.uk/id/local-authority/12UE,Huntingdonshire District Council,31/10/2013,136361,602.05,Thurlow Nunn Standen Ltd,CR001534,One Leisure St Ives,Vehicle Maintenance External,619,
http://statistics.data.gov.uk/id/local-authority/12UE,Huntingdonshire District Council,24/10/2013,135919,623.40,Biffa Waste Services Ltd,CR416469,One Leisure St Ives,Waste Disposal,763,
http://statistics.data.gov.uk/id/local-authority/12UE,Huntingdonshire District Council,17/10/2013,135249,324.22,Snackline Direct Ltd,CR478090,One Leisure St Neots,Bar Provisions,558,
http://statistics.data.gov.uk/id/local-authority/12UE,Huntingdonshire District Council,31/10/2013,136061,1888.42,Ecocleen Services Limited,CR406985,One Leisure St Neots,Building Cleaning Internal,440,
http://statistics.data.gov.uk/id/local-authority/12UE,Huntingdonshire District Council,31/10/2013,136395,446.44,G4s Cashservices Uk Ltd,CR407133,One Leisure St Neots,Cash Collection,702,
http://statistics.data.gov.uk/id/local-authority/12UE,Huntingdonshire District Council,17/10/2013,135249,90.95,Snackline Direct Ltd,CR478090,One Leisure St Neots,Catering Materials,559,
http://statistics.data.gov.uk/id/local-authority/12UE,Huntingdonshire District Council,24/10/2013,136064,641.90,Brenntag Uk Ltd,CR015017,One Leisure St Neots,Chemicals,551,
http://statistics.data.gov.uk/id/local-authority/12UE,Huntingdonshire District Council,03/10/2013,134918,586.90,Chemaide Limited,CR416597,One Leisure St Neots,Cleaning Materials,443,
http://statistics.data.gov.uk/id/local-authority/12UE,Huntingdonshire District Council,17/10/2013,135249,205.06,Snackline Direct Ltd,CR478090,One Leisure St Neots,Confectionery,572,
http://statistics.data.gov.uk/id/local-authority/12UE,Huntingdonshire District Council,10/10/2013,135866,8511.62,E-On Energy,CR416430,One Leisure St Neots,Electricity,420,
http://statistics.data.gov.uk/id/local-authority/12UE,Huntingdonshire District Council,24/10/2013,136583,708.02,Technogym Uk Ltd,CR033037,One Leisure St Neots,Equipment Maintenance,511,
http://statistics.data.gov.uk/id/local-authority/12UE,Huntingdonshire District Council,17/10/2013,136587,40.44,E A Ellison,CR480861,One Leisure St Neots,Equipment Purchases,500,
http://statistics.data.gov.uk/id/local-authority/12UE,Huntingdonshire District Council,17/10/2013,136328,2589.71,E-On Energy,CR416430,One Leisure St Neots,Gas,421,
http://statistics.data.gov.uk/id/local-authority/12UE,Huntingdonshire District Council,10/10/2013,134887,534.00,Associated Catering Equipment,CR481172,One Leisure St Neots,Gen Building Mtce - Responsive,303,
http://statistics.data.gov.uk/id/local-authority/12UE,Huntingdonshire District Council,03/10/2013,134910,1702.80,The Softbrick Company Ltd,CR480234,One Leisure St Neots,Gen Building Mtce - Responsive,303,
http://statistics.data.gov.uk/id/local-authority/12UE,Huntingdonshire District Council,31/10/2013,136055,976.84,Decleor Uk Ltd,CR480786,One Leisure St Neots,Materials,550,
http://statistics.data.gov.uk/id/local-authority/12UE,Huntingdonshire District Council,17/10/2013,136587,551.82,E A Ellison,CR480861,One Leisure St Neots,Materials,550,
http://statistics.data.gov.uk/id/local-authority/12UE,Huntingdonshire District Council,31/10/2013,136055,595.59,Decleor Uk Ltd,CR480786,One Leisure St Neots,Materials For Resale,570,
http://statistics.data.gov.uk/id/local-authority/12UE,Huntingdonshire District Council,24/10/2013,136594,56.88,Orange Airtime,CR455799,One Leisure St Neots,Mobile Telephones & Radios,241,
http://statistics.data.gov.uk/id/local-authority/12UE,Huntingdonshire District Council,24/10/2013,136595,28.80,Orange Airtime,CR455799,One Leisure St Neots,Mobile Telephones & Radios,241,
http://statistics.data.gov.uk/id/local-authority/12UE,Huntingdonshire District Council,24/10/2013,136968,773.68,Burgin Ltd,CR482438,One Leisure St Neots,Plant & Equipment Maintenance,380,
http://statistics.data.gov.uk/id/local-authority/12UE,Huntingdonshire District Council,03/10/2013,135606,624.60,Burgin Ltd,CR482438,One Leisure St Neots,Plant & Equipment Maintenance,380,
http://statistics.data.gov.uk/id/local-authority/12UE,Huntingdonshire District Council,03/10/2013,135619,847.20,Jsa Leisure Ltd,CR40187,One Leisure St Neots,Plant & Equipment Maintenance,380,
http://statistics.data.gov.uk/id/local-authority/12UE,Huntingdonshire District Council,10/10/2013,134922,675.77,Phs Group Ltd,CR032018,One Leisure St Neots,Subcontractors,777,
http://statistics.data.gov.uk/id/local-authority/12UE,Huntingdonshire District Council,17/10/2013,135247,558.24,Glaxosmithkline,CR010424,One Leisure St Neots,Vending Materials,560,
http://statistics.data.gov.uk/id/local-authority/12UE,Huntingdonshire District Council,10/10/2013,134894,860.50,Snackline Direct Ltd,CR478090,One Leisure St Neots,Vending Materials,560,
http://statistics.data.gov.uk/id/local-authority/12UE,Huntingdonshire District Council,31/10/2013,137211,4885.81,Anglian Water,CR000071,One Leisure St Neots,Water,432,
http://statistics.data.gov.uk/id/local-authority/12UE,Huntingdonshire District Council,31/10/2013,137209,859.09,Anglian Water,CR000071,One Leisure St Neots,Water,432,
http://statistics.data.gov.uk/id/local-authority/12UE,Huntingdonshire District Council,24/10/2013,136594,357.68,Orange Airtime,CR455799,Operations Mgt Units,Mobile Telephones & Radios,241,
http://statistics.data.gov.uk/id/local-authority/12UE,Huntingdonshire District Council,24/10/2013,136595,177.60,Orange Airtime,CR455799,Operations Mgt Units,Mobile Telephones & Radios,241,
http://statistics.data.gov.uk/id/local-authority/12UE,Huntingdonshire District Council,03/10/2013,134576,1380.00,Freight Transport Association,CR003104,Operations Mgt Units,Training - Operational,131,
http://statistics.data.gov.uk/id/local-authority/12UE,Huntingdonshire District Council,03/10/2013,134577,1380.00,Freight Transport Association,CR003104,Operations Mgt Units,Training - Operational,131,
http://statistics.data.gov.uk/id/local-authority/12UE,Huntingdonshire District Council,03/10/2013,134578,1380.00,Freight Transport Association,CR003104,Operations Mgt Units,Training - Operational,131,
http://statistics.data.gov.uk/id/local-authority/12UE,Huntingdonshire District Council,31/10/2013,136443,3250.00,The Cctv Training Academy,CR455987,Operations Mgt Units,Training - Operational,131,
http://statistics.data.gov.uk/id/local-authority/12UE,Huntingdonshire District Council,03/10/2013,134381,3888.00,Aragon Homes Ltd,CR455897,Parks & Open Spaces,Gen Building Mtce - Responsive,303,
http://statistics.data.gov.uk/id/local-authority/12UE,Huntingdonshire District Council,10/10/2013,134721,600.00,G Ferrara Ltd,CR478949,Parks & Open Spaces,Gen Building Mtce - Responsive,303,
http://statistics.data.gov.uk/id/local-authority/12UE,Huntingdonshire District Council,10/10/2013,135100,4792.13,Qecs Electrical Contractors Ltd,CR455874,Parks & Open Spaces,Gen Building Mtce - Responsive,303,
http://statistics.data.gov.uk/id/local-authority/12UE,Huntingdonshire District Council,24/10/2013,136495,1801.42,Hags-Smp Ltd,CR455681,Parks & Open Spaces,Playground Equipment,360,
http://statistics.data.gov.uk/id/local-authority/12UE,Huntingdonshire District Council,10/10/2013,135867,8836.88,E-On Energy,CR416430,Pathfinder House Site,Electricity,420,
http://statistics.data.gov.uk/id/local-authority/12UE,Huntingdonshire District Council,17/10/2013,136334,531.88,E-On Energy,CR416430,Pathfinder House Site,Gas,421,
http://statistics.data.gov.uk/id/local-authority/12UE,Huntingdonshire District Council,10/10/2013,135093,559.80,Uk Fire Protection Services Ltd,CR480038,Pathfinder House Site,Gen Building Mtce - Planned,304,
http://statistics.data.gov.uk/id/local-authority/12UE,Huntingdonshire District Council,24/10/2013,135493,1119.60,Britannia Fire & Security Ltd,CR410090,Pathfinder House Site,Gen Building Mtce - Responsive,303,
http://statistics.data.gov.uk/id/local-authority/12UE,Huntingdonshire District Council,24/10/2013,135715,780.00,Cambridge Flat Roofing,CR479717,Pathfinder House Site,Gen Building Mtce - Responsive,303,
http://statistics.data.gov.uk/id/local-authority/12UE,Huntingdonshire District Council,24/10/2013,135832,780.00,Cambridge Flat Roofing,CR479717,Pathfinder House Site,Gen Building Mtce - Responsive,303,
http://statistics.data.gov.uk/id/local-authority/12UE,Huntingdonshire District Council,17/10/2013,136349,3663.00,Hygiene Solutions,CR477443,Pathfinder House Site,Gen Building Mtce - Responsive,303,
http://statistics.data.gov.uk/id/local-authority/12UE,Huntingdonshire District Council,31/10/2013,137265,616.32,Ecocleen Services Limited,CR406985,Pathfinder House Site,Hired Staff,100,
http://statistics.data.gov.uk/id/local-authority/12UE,Huntingdonshire District Council,24/10/2013,136594,9.60,Orange Airtime,CR455799,Pathfinder House Site,Mobile Telephones & Radios,241,
http://statistics.data.gov.uk/id/local-authority/12UE,Huntingdonshire District Council,24/10/2013,136595,4.80,Orange Airtime,CR455799,Pathfinder House Site,Mobile Telephones & Radios,241,
http://statistics.data.gov.uk/id/local-authority/12UE,Huntingdonshire District Council,24/10/2013,135701,564.38,Hedley Solutions Ltd,CR026816,Pathfinder House Site,Other I T Hardware,203,
http://statistics.data.gov.uk/id/local-authority/12UE,Huntingdonshire District Council,31/10/2013,136821,1202.58,Kone Lifts Ltd,CR000483,Pathfinder House Site,Plant & Equipment Maintenance,380,
http://statistics.data.gov.uk/id/local-authority/12UE,Huntingdonshire District Council,31/10/2013,136872,2985.15,Anglian Water,CR000071,Pathfinder House Site,Water,432,
http://statistics.data.gov.uk/id/local-authority/12UE,Huntingdonshire District Council,24/10/2013,136081,1343.11,Essex Environmental Supplies Limited,CR40195,Pest Control,Health & Safety,718,
http://statistics.data.gov.uk/id/local-authority/12UE,Huntingdonshire District Council,10/10/2013,135553,168.00,Ian'S Tyre & Exhaust Centre,CR405836,Pest Control,Tyres,630,
http://statistics.data.gov.uk/id/local-authority/12UE,Huntingdonshire District Council,24/10/2013,136594,214.32,Orange Airtime,CR455799,Planning M U'S,Mobile Telephones & Radios,241,
http://statistics.data.gov.uk/id/local-authority/12UE,Huntingdonshire District Council,24/10/2013,136595,108.00,Orange Airtime,CR455799,Planning M U'S,Mobile Telephones & Radios,241,
http://statistics.data.gov.uk/id/local-authority/12UE,Huntingdonshire District Council,31/10/2013,135891,1027.00,Ecocleen Services Limited,CR406985,Public Conveniences,Building Cleaning Internal,440,
http://statistics.data.gov.uk/id/local-authority/12UE,Huntingdonshire District Council,31/10/2013,135885,658.10,Ecocleen Services Limited,CR406985,Public Conveniences,Building Cleaning Internal,440,
http://statistics.data.gov.uk/id/local-authority/12UE,Huntingdonshire District Council,10/10/2013,134722,672.00,G Ferrara Ltd,CR478949,Public Conveniences,Gen Building Mtce - Responsive,303,
http://statistics.data.gov.uk/id/local-authority/12UE,Huntingdonshire District Council,17/10/2013,135508,3236.47,Staffline Group,CR416827,Recycling,Hired Staff,100,
http://statistics.data.gov.uk/id/local-authority/12UE,Huntingdonshire District Council,03/10/2013,134811,3020.33,Staffline Group,CR416827,Recycling,Hired Staff,100,
http://statistics.data.gov.uk/id/local-authority/12UE,Huntingdonshire District Council,10/10/2013,135556,2243.92,Staffline Group,CR416827,Recycling,Hired Staff,100,
http://statistics.data.gov.uk/id/local-authority/12UE,Huntingdonshire District Council,24/10/2013,136010,2141.53,Staffline Group,CR416827,Recycling,Hired Staff,100,
http://statistics.data.gov.uk/id/local-authority/12UE,Huntingdonshire District Council,31/10/2013,136433,1555.67,Staffline Group,CR416827,Recycling,Hired Staff,100,
http://statistics.data.gov.uk/id/local-authority/12UE,Huntingdonshire District Council,03/10/2013,134801,3524.54,Viridor Waste Management Ltd,CR482408,Recycling,Recycling Collections,747,
http://statistics.data.gov.uk/id/local-authority/12UE,Huntingdonshire District Council,10/10/2013,135228,4305.60,Imperial Polythene Products Ltd,CR455671,Recycling,Refuse Sacks,552,
http://statistics.data.gov.uk/id/local-authority/12UE,Huntingdonshire District Council,31/10/2013,137358,572.06,Arrowpak International,CR455008,Renovation/Improvement Grants,Grants (Paid Out),800,
http://statistics.data.gov.uk/id/local-authority/12UE,Huntingdonshire District Council,31/10/2013,137356,6308.70,King Lawes Legal,CR456005,Renovation/Improvement Grants,Grants (Paid Out),800,
http://statistics.data.gov.uk/id/local-authority/12UE,Huntingdonshire District Council,03/10/2013,134522,1474.00,Cambridge City Council,CR477360,Renovation/Improvement Grants,Professional Fees,798,
http://statistics.data.gov.uk/id/local-authority/12UE,Huntingdonshire District Council,31/10/2013,137014,1536.00,Morgan Hunt Public Uk Ltd,CR415693,Revenue Services Mus,Hired Staff,100,
http://statistics.data.gov.uk/id/local-authority/12UE,Huntingdonshire District Council,24/10/2013,136799,1065.60,Morgan Hunt Public Uk Ltd,CR415693,Revenue Services Mus,Hired Staff,100,
http://statistics.data.gov.uk/id/local-authority/12UE,Huntingdonshire District Council,31/10/2013,137017,1065.60,Morgan Hunt Public Uk Ltd,CR415693,Revenue Services Mus,Hired Staff,100,
http://statistics.data.gov.uk/id/local-authority/12UE,Huntingdonshire District Council,03/10/2013,135285,1036.80,Morgan Hunt Public Uk Ltd,CR415693,Revenue Services Mus,Hired Staff,100,
http://statistics.data.gov.uk/id/local-authority/12UE,Huntingdonshire District Council,10/10/2013,135845,1036.80,Morgan Hunt Public Uk Ltd,CR415693,Revenue Services Mus,Hired Staff,100,
http://statistics.data.gov.uk/id/local-authority/12UE,Huntingdonshire District Council,10/10/2013,135844,825.60,Morgan Hunt Public Uk Ltd,CR415693,Revenue Services Mus,Hired Staff,100,
http://statistics.data.gov.uk/id/local-authority/12UE,Huntingdonshire District Council,24/10/2013,136798,768.00,Morgan Hunt Public Uk Ltd,CR415693,Revenue Services Mus,Hired Staff,100,
http://statistics.data.gov.uk/id/local-authority/12UE,Huntingdonshire District Council,03/10/2013,135284,710.40,Morgan Hunt Public Uk Ltd,CR415693,Revenue Services Mus,Hired Staff,100,
http://statistics.data.gov.uk/id/local-authority/12UE,Huntingdonshire District Council,24/10/2013,136594,124.80,Orange Airtime,CR455799,Revenue Services Mus,Mobile Telephones & Radios,241,
http://statistics.data.gov.uk/id/local-authority/12UE,Huntingdonshire District Council,24/10/2013,136595,62.40,Orange Airtime,CR455799,Revenue Services Mus,Mobile Telephones & Radios,241,
http://statistics.data.gov.uk/id/local-authority/12UE,Huntingdonshire District Council,10/10/2013,134771,811.09,Royal Mail,CR027083,Revenue Services Mus,Postage,231,
http://statistics.data.gov.uk/id/local-authority/12UE,Huntingdonshire District Council,17/10/2013,135468,3118.63,T N T Post London Ltd,CR479965,Revenue Services Mus,Postage,231,
http://statistics.data.gov.uk/id/local-authority/12UE,Huntingdonshire District Council,24/10/2013,135883,1235.87,T N T Post London Ltd,CR479965,Revenue Services Mus,Postage,231,
http://statistics.data.gov.uk/id/local-authority/12UE,Huntingdonshire District Council,31/10/2013,136001,971.60,T N T Post London Ltd,CR479965,Revenue Services Mus,Postage,231,
http://statistics.data.gov.uk/id/local-authority/12UE,Huntingdonshire District Council,10/10/2013,135056,433.05,T N T Post London Ltd,CR479965,Revenue Services Mus,Postage,231,
http://statistics.data.gov.uk/id/local-authority/12UE,Huntingdonshire District Council,03/10/2013,134706,996.28,T N T Post London Ltd,CR479965,Revenue Services Mus,Postage,231,
http://statistics.data.gov.uk/id/local-authority/12UE,Huntingdonshire District Council,10/10/2013,135850,1320.00,Arvato Bertelsmann,CR479878,Revenue Services Mus,Training - Other,136,
http://statistics.data.gov.uk/id/local-authority/12UE,Huntingdonshire District Council,24/10/2013,135677,1113.19,Dell Computer Corporation,CR408320,Software Capital,P C'S And Accessories,201,
http://statistics.data.gov.uk/id/local-authority/12UE,Huntingdonshire District Council,31/10/2013,136437,2334.61,Staffline Group,CR416827,Street Cleaning,Hired Staff,100,
http://statistics.data.gov.uk/id/local-authority/12UE,Huntingdonshire District Council,24/10/2013,136013,1881.36,Staffline Group,CR416827,Street Cleaning,Hired Staff,100,
http://statistics.data.gov.uk/id/local-authority/12UE,Huntingdonshire District Council,10/10/2013,135551,1840.56,Staffline Group,CR416827,Street Cleaning,Hired Staff,100,
http://statistics.data.gov.uk/id/local-authority/12UE,Huntingdonshire District Council,17/10/2013,135506,1605.22,Staffline Group,CR416827,Street Cleaning,Hired Staff,100,
http://statistics.data.gov.uk/id/local-authority/12UE,Huntingdonshire District Council,03/10/2013,134809,1498.06,Staffline Group,CR416827,Street Cleaning,Hired Staff,100,
http://statistics.data.gov.uk/id/local-authority/12UE,Huntingdonshire District Council,03/10/2013,134810,975.25,Staffline Group,CR416827,Street Cleaning,Hired Staff,100,
http://statistics.data.gov.uk/id/local-authority/12UE,Huntingdonshire District Council,17/10/2013,135507,756.92,Staffline Group,CR416827,Street Cleaning,Hired Staff,100,
http://statistics.data.gov.uk/id/local-authority/12UE,Huntingdonshire District Council,10/10/2013,135550,756.92,Staffline Group,CR416827,Street Cleaning,Hired Staff,100,
http://statistics.data.gov.uk/id/local-authority/12UE,Huntingdonshire District Council,24/10/2013,136014,647.75,Staffline Group,CR416827,Street Cleaning,Hired Staff,100,
http://statistics.data.gov.uk/id/local-authority/12UE,Huntingdonshire District Council,17/10/2013,136109,1296.00,Meteora Ltd,CR417248,Street Cleaning,Materials,550,
http://statistics.data.gov.uk/id/local-authority/12UE,Huntingdonshire District Council,24/10/2013,135577,32.87,Bandvulc Tyres Ltd,CR406810,Street Cleaning,Tyres,630,
http://statistics.data.gov.uk/id/local-authority/12UE,Huntingdonshire District Council,10/10/2013,135553,408.00,Ian'S Tyre & Exhaust Centre,CR405836,Street Cleaning,Tyres,630,
http://statistics.data.gov.uk/id/local-authority/12UE,Huntingdonshire District Council,17/10/2013,136560,546.96,Johnston Engineering Ltd,CR029831,Street Cleaning,Vehicle Parts & Fittings,625,
http://statistics.data.gov.uk/id/local-authority/12UE,Huntingdonshire District Council,03/10/2013,134505,2983.07,J Breheny Contractors Ltd,CR000314,Street Naming,Signs Erecting & Removal,361,
http://statistics.data.gov.uk/id/local-authority/12UE,Huntingdonshire District Council,03/10/2013,134502,2679.40,J Breheny Contractors Ltd,CR000314,Street Naming,Signs Erecting & Removal,361,
http://statistics.data.gov.uk/id/local-authority/12UE,Huntingdonshire District Council,03/10/2013,134504,2568.08,J Breheny Contractors Ltd,CR000314,Street Naming,Signs Erecting & Removal,361,
http://statistics.data.gov.uk/id/local-authority/12UE,Huntingdonshire District Council,03/10/2013,134503,2518.46,J Breheny Contractors Ltd,CR000314,Street Naming,Signs Erecting & Removal,361,
http://statistics.data.gov.uk/id/local-authority/12UE,Huntingdonshire District Council,10/10/2013,135118,2067.99,Cambridgeshire County Council,CR006678,Trade Refuse,Waste Disposal,763,
http://statistics.data.gov.uk/id/local-authority/12UE,Huntingdonshire District Council,31/10/2013,136969,12500.00,Hact,CR455657,Transportation Mgt,Grants (Paid Out),800,
http://statistics.data.gov.uk/id/local-authority/12UE,Huntingdonshire District Council,24/10/2013,557025,10000.00,Cambridgeshire County Council,CR006678,Car Park Policy,Subcontractors,777,
http://statistics.data.gov.uk/id/local-authority/12UE,Huntingdonshire District Council,24/10/2013,556736,4452.00,R C Fletcher,CR477425,Countryside,Training - Operational,131,
http://statistics.data.gov.uk/id/local-authority/12UE,Huntingdonshire District Council,10/10/2013,555565,28750.00,Rural Cambs Citzens Advice Bureau,CR455454,Miscellaneous Grants,Grants (Paid Out),800,
http://statistics.data.gov.uk/id/local-authority/12UE,Huntingdonshire District Council,03/10/2013,556402,5964.28,Computershare Vouchers Ltd,CR412205,Payroll,Childcare Admin Vouchers,144,
